[Event "Irish Championship 2026"]
[Site "Talbot Hotel Stillorgan, Co.Dublin, IE"]
[Date "2026.08.07"]
[Round "7"]
[White "Harding, Tim D"]
[Black "Murray, Benjamin"]
[Result "1/2-1/2"]
[Board "71"]
[TimeControl "40/5400+30:1800+30"]
[WhiteFideId "2500256"]
[BlackFideId "2512963"]
[WhiteElo "2004"]
[BlackElo "2080"]
[WhiteTitle "CM"]
[WhiteClock "0:55:20"]
[BlackClock "0:13:11"]
[Variant "Standard"]
[EndDate "2026.08.07"]
[EndTime "17:48:59"]

1. Nf3 {[%clk 1:30:53]}  Nf6 {[%clk 1:26:54]} 2. c4 {[%clk 1:31:15]}  g6 {[%clk 1:27:15]} 3. b3 {[%clk 1:31:37]}  Bg7 {[%clk 1:27:14]}
4. Bb2 {[%clk 1:32:05]}  O-O {[%clk 1:26:44]} 5. g3 {[%clk 1:32:30]}  c5 {[%clk 1:26:29]} 6. Bg2 {[%clk 1:32:49]}  d6 {[%clk 1:26:53]}
7. O-O {[%clk 1:32:06]}  e5 {[%clk 1:27:15]} 8. d3 {[%clk 1:32:17]}  Nc6 {[%clk 1:27:26]} 9. Nc3 {[%clk 1:32:37]}  h6 {[%clk 1:27:00]}
10. Ne1 {[%clk 1:32:22]}  Be6 {[%clk 1:26:01]} 11. Nd5 {[%clk 1:31:08]}  Nh7 {[%clk 1:16:46]} 12. Nc2 {[%clk 1:30:43]}  f5 {[%clk 1:16:13]}
13. f4 {[%clk 1:28:20]}  Qd7 {[%clk 1:09:02]} 14. Kh1 {[%clk 1:22:44]}  Rae8 {[%clk 1:08:06]} 15. Qd2 {[%clk 1:20:27]}  Nf6 {[%clk 0:59:13]}
16. Nce3 {[%clk 1:15:10]}  Nh5 {[%clk 0:54:48]} 17. b4 {[%clk 1:08:46]}  Kh7 {[%clk 0:39:08]} 18. Rae1 {[%clk 1:02:04]}  Qd8 {[%clk 0:34:28]}
19. b5 {[%clk 1:01:09]}  Nd4 {[%clk 0:31:24]} 20. Nd1 {[%clk 1:01:18]}  Bxd5 {[%clk 0:29:45]} 21. Bxd5 {[%clk 1:00:20]}  exf4 {[%clk 0:29:58]}
22. Bxd4 {[%clk 0:58:06]}  Bxd4 {[%clk 0:29:13]} 23. gxf4 {[%clk 0:58:27]}  Qh4 {[%clk 0:29:26]} 24. Rf3 {[%clk 0:58:36]}  g5 {[%clk 0:28:30]}
25. fxg5 {[%clk 0:56:01]}  hxg5 {[%clk 0:28:08]} 26. e3 {[%clk 0:56:16]}  g4 {[%clk 0:23:54]} 27. Qf2 {[%clk 0:56:08]}  g3 {[%clk 0:18:27]}
28. Rxg3 {[%clk 0:53:31]}  Nxg3+ {[%clk 0:18:38]} 29. Qxg3 {[%clk 0:53:59]}  Qxg3 {[%clk 0:18:49]} 30. hxg3 {[%clk 0:54:27]}  b6 {[%clk 0:17:15]}
31. Kg2 {[%clk 0:54:49]}  Kg7 {[%clk 0:16:17]} 32. Kf3 {[%clk 0:53:19]}  Be5 {[%clk 0:13:18]} 33. Nf2 {[%clk 0:51:29]}  Re7 {[%clk 0:07:59]}
34. Rg1 {[%clk 0:50:59]}  Rf6 {[%clk 0:05:14]} 35. Nh3 {[%clk 0:49:51]}  Rh6 {[%clk 0:02:45]} 36. Nf2 {[%clk 0:48:37]}  Kf8 {[%clk 0:01:53]}
37. Rg2 {[%clk 0:42:51]}  Rg7 {[%clk 0:01:24]} 38. e4 {[%clk 0:42:55]}  fxe4+ {[%clk 0:01:33]} 39. Nxe4 {[%clk 0:43:06]}  Rh1 {[%clk 0:01:02]}
40. Nf2 {[%clk 0:34:05]}  Ra1 {[%clk 0:00:45]} 41. Ng4 {[%clk 0:33:42]}  Bd4 {[%clk 0:25:08]} 42. Ne3 {[%clk 0:58:38]}  Rc1 {[%clk 0:18:39]}
43. Be4 {[%clk 0:57:08]}  Rf7+ {[%clk 0:14:11]} 44. Nf5 {[%clk 0:56:15]}  Rf1+ {[%clk 0:13:22]} 45. Kg4 {[%clk 0:56:30]}  Be5 {[%clk 0:13:11]}
46. Kg5 {[%clk 0:55:20]} 1/2-1/2

[Event "Irish Championship 2026"]
[Site "Talbot Hotel Stillorgan, Co.Dublin, IE"]
[Date "2026.08.07"]
[Round "7"]
[White "O'Connell, Gerard"]
[Black "Hayes, Peter J."]
[Result "1-0"]
[Board "72"]
[TimeControl "40/5400+30:1800+30"]
[WhiteFideId "2500493"]
[BlackFideId "2502569"]
[WhiteElo "1996"]
[BlackElo "2073"]
[WhiteClock "0:01:54"]
[BlackClock "0:01:49"]
[Variant "Standard"]
[EndDate "2026.08.07"]
[EndTime "17:32:13"]

1. d4 {[%clk 1:30:56]}  d5 {[%clk 1:29:47]} 2. c4 {[%clk 1:31:17]}  c6 {[%clk 1:29:38]} 3. Nc3 {[%clk 1:31:35]}  Nf6 {[%clk 1:29:52]}
4. Nf3 {[%clk 1:31:06]}  a6 {[%clk 1:30:04]} 5. cxd5 {[%clk 1:26:30]}  cxd5 {[%clk 1:30:21]} 6. g3 {[%clk 1:24:30]}  Bf5 {[%clk 1:19:49]}
7. Bg2 {[%clk 1:23:54]}  e6 {[%clk 1:19:54]} 8. O-O {[%clk 1:22:47]}  Nc6 {[%clk 1:17:58]} 9. Bf4 {[%clk 1:14:52]}  Bd6 {[%clk 1:07:03]}
10. Ne5 {[%clk 0:52:25]}  Rc8 {[%clk 1:05:00]} 11. h3 {[%clk 0:50:42]}  h6 {[%clk 0:54:57]} 12. Re1 {[%clk 0:46:07]}  O-O {[%clk 0:50:17]}
13. a3 {[%clk 0:41:17]}  Na5 {[%clk 0:30:06]} 14. g4 {[%clk 0:40:17]}  Bh7 {[%clk 0:29:54]} 15. e3 {[%clk 0:37:50]}  Qb6 {[%clk 0:28:48]}
16. g5 {[%clk 0:18:28]}  hxg5 {[%clk 0:22:05]} 17. Bxg5 {[%clk 0:18:21]}  Qxb2 {[%clk 0:17:00]} 18. Bxf6 {[%clk 0:18:38]}  gxf6 {[%clk 0:17:22]}
19. Nd7 {[%clk 0:10:38]}  Qxc3 {[%clk 0:07:52]} 20. Nxf6+ {[%clk 0:11:00]}  Kg7 {[%clk 0:08:08]} 21. Nxh7 {[%clk 0:11:24]}  Rh8 {[%clk 0:07:54]}
22. Ng5 {[%clk 0:11:41]}  Qc2 {[%clk 0:07:08]} 23. Qg4 {[%clk 0:07:37]}  f5 {[%clk 0:05:43]} 24. Nxe6+ {[%clk 0:06:00]}  Kf6 {[%clk 0:06:08]}
25. Qf3 {[%clk 0:05:13]}  Rcg8 {[%clk 0:05:04]} 26. Nf4 {[%clk 0:05:09]}  Bxf4 {[%clk 0:04:25]} 27. Qxf4 {[%clk 0:05:19]}  Nc4 {[%clk 0:04:49]}
28. Rac1 {[%clk 0:04:13]}  Qd3 {[%clk 0:04:46]} 29. Kh2 {[%clk 0:04:17]}  Qxa3 {[%clk 0:05:05]} 30. Bxd5 {[%clk 0:04:25]}  Nxe3 {[%clk 0:01:49]}
31. Qxe3 {[%clk 0:01:35]}  Qd6+ {[%clk 0:01:49]} 32. Qe5+ {[%clk 0:01:54]} 1-0

[Event "Irish Championship 2026"]
[Site "Talbot Hotel Stillorgan, Co.Dublin, IE"]
[Date "2026.08.07"]
[Round "7"]
[White "Hughes, Padraig"]
[Black "Burke, Kevin A."]
[Result "1-0"]
[Board "73"]
[TimeControl "40/5400+30:1800+30"]
[WhiteFideId "2505690"]
[BlackFideId "2501520"]
[WhiteElo "2022"]
[BlackElo "1896"]
[WhiteClock "1:01:43"]
[BlackClock "0:54:29"]
[Variant "Standard"]
[EndDate "2026.08.07"]
[EndTime "15:29:59"]

1. e4 {[%clk 1:28:10]}  e6 {[%clk 1:30:54]} 2. d4 {[%clk 1:28:36]}  d5 {[%clk 1:31:21]} 3. Nd2 {[%clk 1:29:01]}  Nf6 {[%clk 1:31:47]}
4. e5 {[%clk 1:29:27]}  Nfd7 {[%clk 1:32:12]} 5. c3 {[%clk 1:29:52]}  c5 {[%clk 1:32:39]} 6. f4 {[%clk 1:30:17]}  Nc6 {[%clk 1:33:02]}
7. Ndf3 {[%clk 1:30:43]}  Be7 {[%clk 1:33:18]} 8. g3 {[%clk 1:31:04]}  Qb6 {[%clk 1:33:15]} 9. Kf2 {[%clk 1:31:19]}  O-O {[%clk 1:33:19]}
10. Kg2 {[%clk 1:31:39]}  f6 {[%clk 1:32:45]} 11. Bd3 {[%clk 1:29:28]}  Rf7 {[%clk 1:26:54]} 12. Ne2 {[%clk 1:28:59]}  Nf8 {[%clk 1:18:32]}
13. h4 {[%clk 1:28:12]}  Bd7 {[%clk 1:14:09]} 14. h5 {[%clk 1:24:27]}  h6 {[%clk 1:08:53]} 15. Bg6 {[%clk 1:11:23]}  Nxg6 {[%clk 1:04:27]}
16. hxg6 {[%clk 1:11:05]}  Rff8 {[%clk 1:04:27]} 17. f5 {[%clk 1:06:04]}  fxe5 {[%clk 1:02:54]} 18. Rxh6 {[%clk 1:01:56]}  gxh6 {[%clk 0:57:46]}
19. Qh1 {[%clk 1:02:15]}  Rxf5 {[%clk 0:57:01]} 20. Qxh6 {[%clk 1:02:19]}  Bd8 {[%clk 0:54:29]} 21. Qh7+ {[%clk 1:01:43]} 1-0

[Event "Irish Championship 2026"]
[Site "Talbot Hotel Stillorgan, Co.Dublin, IE"]
[Date "2026.08.07"]
[Round "7"]
[White "Fitzgerald, Niall"]
[Black "Conor O'reilly"]
[Result "0-1"]
[Board "74"]
[TimeControl "40/5400+30:1800+30"]
[WhiteFideId "2511185"]
[WhiteElo "1894"]
[BlackElo "2019"]
[WhiteClock "0:02:42"]
[BlackClock "0:36:16"]
[Variant "Standard"]
[EndDate "2026.08.07"]
[EndTime "16:52:09"]

1. e4 {[%clk 1:30:55]}  e5 {[%clk 1:30:56]} 2. Nf3 {[%clk 1:31:19]}  Nc6 {[%clk 1:31:22]} 3. Bb5 {[%clk 1:31:42]}  a6 {[%clk 1:31:46]}
4. Ba4 {[%clk 1:32:09]}  Bc5 {[%clk 1:32:11]} 5. c3 {[%clk 1:31:54]}  Nge7 {[%clk 1:32:35]} 6. O-O {[%clk 1:31:24]}  Ng6 {[%clk 1:32:59]}
7. d4 {[%clk 1:31:04]}  Ba7 {[%clk 1:33:23]} 8. Bg5 {[%clk 1:30:08]}  f6 {[%clk 1:33:30]} 9. Be3 {[%clk 1:30:24]}  O-O {[%clk 1:33:39]}
10. Re1 {[%clk 1:29:16]}  Kh8 {[%clk 1:26:48]} 11. Nbd2 {[%clk 1:27:17]}  exd4 {[%clk 1:19:41]} 12. cxd4 {[%clk 1:22:40]}  d5 {[%clk 1:25:07]}
13. h3 {[%clk 1:14:30]}  Be6 {[%clk 1:20:39]} 14. Bxc6 {[%clk 0:57:39]}  bxc6 {[%clk 1:19:35]} 15. Qa4 {[%clk 0:55:35]}  dxe4 {[%clk 1:18:31]}
16. Nxe4 {[%clk 0:55:37]}  Bd5 {[%clk 1:18:35]} 17. Ned2 {[%clk 0:45:55]}  Qd7 {[%clk 1:08:34]} 18. Qa3 {[%clk 0:33:30]}  a5 {[%clk 0:52:08]}
19. Rac1 {[%clk 0:29:37]}  Bb6 {[%clk 0:44:52]} 20. Re2 {[%clk 0:17:19]}  Rae8 {[%clk 0:42:38]} 21. Rce1 {[%clk 0:16:38]}  Rf7 {[%clk 0:39:37]}
22. Qc3 {[%clk 0:08:52]}  Rfe7 {[%clk 0:39:17]} 23. Kf1 {[%clk 0:02:36]}  f5 {[%clk 0:36:16]} 24. Bg5 {[%clk 0:02:42]}  Rxe2 {[%clk 0:36:39]}
25. Rxe2 {[%clk 0:03:07]}  Rxe2 {[%clk 0:37:02]} 26. Kxe2 {[%clk 0:03:31]}  h6 {[%clk 0:37:16]} 27. Bh4 {[%clk 0:01:25]}  Nxh4 {[%clk 0:37:21]}
28. Nxh4 {[%clk 0:01:17]}  Qe7+ {[%clk 0:37:46]} 0-1

[Event "Irish Championship 2026"]
[Site "Talbot Hotel Stillorgan, Co.Dublin, IE"]
[Date "2026.08.07"]
[Round "7"]
[White "Andhurthi, Sreeyan"]
[Black "Moull, Arthur"]
[Result "0-1"]
[Board "75"]
[TimeControl "40/5400+30:1800+30"]
[WhiteFideId "2523531"]
[BlackFideId "2517426"]
[WhiteElo "1950"]
[BlackElo "1876"]
[WhiteClock "0:23:00"]
[BlackClock "0:56:39"]
[Variant "Standard"]
[EndDate "2026.08.07"]
[EndTime "18:02:12"]

1. e4 {[%clk 1:30:48]}  c6 {[%clk 1:30:54]} 2. d4 {[%clk 1:31:14]}  d5 {[%clk 1:31:22]} 3. exd5 {[%clk 1:31:38]}  cxd5 {[%clk 1:31:45]}
4. Bd3 {[%clk 1:32:01]}  Nc6 {[%clk 1:32:10]} 5. c3 {[%clk 1:32:26]}  Nf6 {[%clk 1:32:30]} 6. Bf4 {[%clk 1:32:15]}  Bg4 {[%clk 1:32:55]}
7. Qb3 {[%clk 1:32:40]}  Qd7 {[%clk 1:33:20]} 8. Nd2 {[%clk 1:33:04]}  e6 {[%clk 1:33:45]} 9. Ngf3 {[%clk 1:33:29]}  Bd6 {[%clk 1:34:09]}
10. Bxd6 {[%clk 1:33:28]}  Qxd6 {[%clk 1:34:35]} 11. O-O {[%clk 1:33:48]}  O-O {[%clk 1:34:54]} 12. Rae1 {[%clk 1:33:57]}  Nd7 {[%clk 1:34:40]}
13. Qc2 {[%clk 1:33:56]}  g6 {[%clk 1:34:59]} 14. h3 {[%clk 1:32:52]}  Bf5 {[%clk 1:35:01]} 15. Re3 {[%clk 1:26:27]}  Rfe8 {[%clk 1:22:35]}
16. Rfe1 {[%clk 1:24:12]}  Rac8 {[%clk 1:16:32]} 17. Bxf5 {[%clk 1:22:16]}  gxf5 {[%clk 1:16:50]} 18. Qd3 {[%clk 1:19:39]}  Qf4 {[%clk 1:09:05]}
19. Ne5 {[%clk 0:58:58]}  Ndxe5 {[%clk 1:02:56]} 20. dxe5 {[%clk 0:58:04]}  Ne7 {[%clk 1:02:02]} 21. Rf3 {[%clk 0:50:24]}  Qh6 {[%clk 1:02:04]}
22. Nb3 {[%clk 0:45:47]}  Rc7 {[%clk 1:00:09]} 23. Nd4 {[%clk 0:44:32]}  a6 {[%clk 0:59:53]} 24. Ree3 {[%clk 0:37:21]}  Ng6 {[%clk 0:58:37]}
25. Re1 {[%clk 0:26:10]}  Rec8 {[%clk 0:56:54]} 26. Kh2 {[%clk 0:23:49]}  Kh8 {[%clk 0:53:40]} 27. Qe3 {[%clk 0:17:12]}  f4 {[%clk 0:49:02]}
28. Qd2 {[%clk 0:12:04]}  Rg8 {[%clk 0:49:01]} 29. Rd3 {[%clk 0:09:31]}  Qg7 {[%clk 0:37:42]} 30. Rg1 {[%clk 0:05:03]}  Nxe5 {[%clk 0:37:38]}
31. Qxf4 {[%clk 0:04:45]}  Nxd3 {[%clk 0:37:42]} 32. Qxc7 {[%clk 0:05:06]}  Nxf2 {[%clk 0:38:00]} 33. Qf4 {[%clk 0:04:54]}  Nd3 {[%clk 0:36:37]}
34. Qf3 {[%clk 0:04:30]}  Nc5 {[%clk 0:33:21]} 35. Kh1 {[%clk 0:04:05]}  Ne4 {[%clk 0:33:36]} 36. Re1 {[%clk 0:03:55]}  Qg5 {[%clk 0:28:25]}
37. Rxe4 {[%clk 0:01:15]}  dxe4 {[%clk 0:28:34]} 38. Qxe4 {[%clk 0:01:37]}  Qd5 {[%clk 0:28:20]} 39. Qxd5 {[%clk 0:01:21]}  exd5 {[%clk 0:28:48]}
40. Kg1 {[%clk 0:01:30]}  Re8 {[%clk 0:28:37]} 41. Kf2 {[%clk 0:01:48]}  Kg7 {[%clk 0:28:58]} 42. a3 {[%clk 0:26:29]}  Kf6 {[%clk 0:58:58]}
43. Nb3 {[%clk 0:25:19]}  Ke5 {[%clk 0:58:56]} 44. Ke3 {[%clk 0:25:33]}  f5 {[%clk 0:59:08]} 45. Nd4 {[%clk 0:25:26]}  f4+ {[%clk 0:59:08]}
46. Kf3 {[%clk 0:25:33]}  h5 {[%clk 0:59:03]} 47. Ne2 {[%clk 0:25:07]}  Rf8 {[%clk 0:58:08]} 48. Nc1 {[%clk 0:24:25]}  h4 {[%clk 0:57:16]}
49. Nd3+ {[%clk 0:24:38]}  Kf5 {[%clk 0:57:28]} 50. Nb4 {[%clk 0:24:36]}  Rd8 {[%clk 0:56:23]} 51. Nd3 {[%clk 0:24:22]}  Rg8 {[%clk 0:56:51]}
52. Nc5 {[%clk 0:24:21]}  Rg7 {[%clk 0:56:51]} 53. Nb3 {[%clk 0:23:21]}  Rg3+ {[%clk 0:56:43]} 54. Kf2 {[%clk 0:23:44]}  b6 {[%clk 0:56:38]}
55. Nd2 {[%clk 0:23:13]}  Ke5 {[%clk 0:56:33]} 56. Nf1 {[%clk 0:22:53]}  Rg6 {[%clk 0:56:03]} 57. Nd2 {[%clk 0:23:08]}  b5 {[%clk 0:55:49]}
58. Nf3+ {[%clk 0:22:52]}  Ke4 {[%clk 0:56:15]} 59. Nxh4 {[%clk 0:22:59]}  Rg8 {[%clk 0:56:29]} 60. Nf3 {[%clk 0:22:42]}  a5 {[%clk 0:56:24]}
61. Ne1 {[%clk 0:22:16]}  b4 {[%clk 0:56:37]} 62. axb4 {[%clk 0:21:36]}  axb4 {[%clk 0:57:06]} 63. cxb4 {[%clk 0:22:05]}  Rb8 {[%clk 0:57:17]}
64. h4 {[%clk 0:22:12]}  Rxb4 {[%clk 0:57:39]} 65. Ke2 {[%clk 0:22:23]}  Rxb2+ {[%clk 0:58:02]} 66. Kd1 {[%clk 0:22:41]}  Rf2 {[%clk 0:57:55]}
67. h5 {[%clk 0:22:54]}  Rf1 {[%clk 0:57:46]} 68. Ke2 {[%clk 0:23:05]}  Rh1 {[%clk 0:58:07]} 69. Nf3 {[%clk 0:23:21]}  Rxh5 {[%clk 0:58:26]}
70. Nd2+ {[%clk 0:23:40]}  Kd4 {[%clk 0:56:44]} 71. Kf3 {[%clk 0:23:44]}  Kd3 {[%clk 0:55:59]} 72. Nb3 {[%clk 0:23:59]}  Rf5 {[%clk 0:55:56]}
73. Kg4 {[%clk 0:23:46]}  Rf6 {[%clk 0:55:58]} 74. Nc5+ {[%clk 0:23:50]}  Ke3 {[%clk 0:56:03]} 75. Kg5 {[%clk 0:23:20]}  f3 {[%clk 0:56:19]}
76. Kxf6 {[%clk 0:23:14]}  fxg2 {[%clk 0:56:39]} 77. Ke5 {[%clk 0:23:00]} 0-1

[Event "Irish Championship 2026"]
[Site "Talbot Hotel Stillorgan, Co.Dublin, IE"]
[Date "2026.08.07"]
[Round "7"]
[White "Ryan, Joshua"]
[Black "Healy, John"]
[Result "1-0"]
[Board "76"]
[TimeControl "40/5400+30:1800+30"]
[WhiteFideId "2516705"]
[BlackFideId "2500965"]
[WhiteElo "1866"]
[BlackElo "1928"]
[WhiteClock "0:22:50"]
[BlackClock "0:58:14"]
[Variant "Standard"]
[EndDate "2026.08.07"]
[EndTime "16:08:37"]

1. e4 {[%clk 1:28:36]}  c5 {[%clk 1:30:55]} 2. c3 {[%clk 1:27:45]}  d5 {[%clk 1:30:59]} 3. exd5 {[%clk 1:28:53]}  Qxd5 {[%clk 1:31:23]}
4. d4 {[%clk 1:29:17]}  Nf6 {[%clk 1:31:41]} 5. Nf3 {[%clk 1:29:43]}  e6 {[%clk 1:31:50]} 6. Na3 {[%clk 1:29:51]}  Bd7 {[%clk 1:29:45]}
7. Nb5 {[%clk 1:26:25]}  Bxb5 {[%clk 1:28:09]} 8. Bxb5+ {[%clk 1:26:35]}  Nbd7 {[%clk 1:28:33]} 9. O-O {[%clk 1:24:38]}  cxd4 {[%clk 1:27:19]}
10. Nxd4 {[%clk 1:24:43]}  a6 {[%clk 1:23:04]} 11. Be2 {[%clk 1:24:01]}  Qd6 {[%clk 1:20:48]} 12. Bf3 {[%clk 1:22:24]}  Qc7 {[%clk 1:20:40]}
13. Re1 {[%clk 1:15:28]}  Be7 {[%clk 1:17:01]} 14. Bg5 {[%clk 0:55:04]}  Ne5 {[%clk 1:11:46]} 15. Bxb7 {[%clk 0:41:29]}  Qxb7 {[%clk 1:11:40]}
16. Rxe5 {[%clk 0:40:55]}  Qxb2 {[%clk 1:07:58]} 17. Nc6 {[%clk 0:30:05]}  Bd6 {[%clk 1:05:45]} 18. Rb1 {[%clk 0:28:40]}  Qxb1 {[%clk 1:01:59]}
19. Qxb1 {[%clk 0:28:52]}  Bxe5 {[%clk 1:02:24]} 20. Nxe5 {[%clk 0:26:35]}  O-O {[%clk 1:02:48]} 21. Bxf6 {[%clk 0:25:55]}  gxf6 {[%clk 1:03:12]}
22. Nd7 {[%clk 0:25:37]}  Rfd8 {[%clk 1:03:35]} 23. Nxf6+ {[%clk 0:25:04]}  Kg7 {[%clk 1:03:56]} 24. Nh5+ {[%clk 0:24:49]}  Kh6 {[%clk 1:04:05]}
25. g4 {[%clk 0:24:20]}  Rd2 {[%clk 1:03:24]} 26. Qe4 {[%clk 0:22:37]}  Rad8 {[%clk 0:58:37]} 27. Qf4+ {[%clk 0:22:50]}  Kg6 {[%clk 0:58:14]} 1-0

[Event "Irish Championship 2026"]
[Site "Talbot Hotel Stillorgan, Co.Dublin, IE"]
[Date "2026.08.07"]
[Round "7"]
[White "Dash, Shaurya"]
[Black "John P. A. Kennedy"]
[Result "0-1"]
[Board "77"]
[TimeControl "40/5400+30:1800+30"]
[WhiteFideId "2534789"]
[WhiteElo "1751"]
[BlackElo "2012"]
[WhiteClock "0:23:31"]
[BlackClock "0:06:06"]
[Variant "Standard"]
[EndDate "2026.08.07"]
[EndTime "17:19:20"]

1. d4 {[%clk 1:30:57]}  d5 {[%clk 1:30:54]} 2. c4 {[%clk 1:31:19]}  e6 {[%clk 1:31:21]} 3. Nc3 {[%clk 1:31:45]}  c5 {[%clk 1:31:48]}
4. e3 {[%clk 1:30:09]}  Nf6 {[%clk 1:31:53]} 5. cxd5 {[%clk 1:30:22]}  exd5 {[%clk 1:32:19]} 6. Bb5+ {[%clk 1:29:58]}  Nc6 {[%clk 1:32:18]}
7. Qc2 {[%clk 1:21:56]}  Qb6 {[%clk 1:29:15]} 8. Nf3 {[%clk 1:16:30]}  Be7 {[%clk 1:23:28]} 9. O-O {[%clk 1:14:40]}  O-O {[%clk 1:23:44]}
10. Bxc6 {[%clk 1:12:14]}  Qxc6 {[%clk 1:22:30]} 11. dxc5 {[%clk 1:10:07]}  Qxc5 {[%clk 1:22:29]} 12. Qd3 {[%clk 1:03:52]}  Be6 {[%clk 1:16:14]}
13. Bd2 {[%clk 0:57:02]}  Rfd8 {[%clk 1:03:47]} 14. Rab1 {[%clk 0:54:21]}  d4 {[%clk 0:50:10]} 15. exd4 {[%clk 0:45:24]}  Qh5 {[%clk 0:43:16]}
16. Rbc1 {[%clk 0:40:35]}  Bg4 {[%clk 0:38:46]} 17. Ng5 {[%clk 0:35:01]}  h6 {[%clk 0:24:26]} 18. Nge4 {[%clk 0:31:58]}  Bf5 {[%clk 0:23:10]}
19. Bf4 {[%clk 0:30:17]}  Qg4 {[%clk 0:17:06]} 20. Qe3 {[%clk 0:29:15]}  Bxe4 {[%clk 0:16:06]} 21. Nxe4 {[%clk 0:29:25]}  Nd5 {[%clk 0:16:26]}
22. Qb3 {[%clk 0:26:01]}  Nxf4 {[%clk 0:15:16]} 23. Ng3 {[%clk 0:26:22]}  Qd7 {[%clk 0:13:52]} 24. Rfe1 {[%clk 0:24:30]}  Qd5 {[%clk 0:12:32]}
25. Qxd5 {[%clk 0:23:34]}  Nxd5 {[%clk 0:12:59]} 26. Nf5 {[%clk 0:23:30]}  Bg5 {[%clk 0:12:52]} 27. Rc5 {[%clk 0:22:39]}  g6 {[%clk 0:12:50]}
28. Re5 {[%clk 0:22:14]}  gxf5 {[%clk 0:11:45]} 29. Rexd5 {[%clk 0:22:26]}  Rxd5 {[%clk 0:12:09]} 30. Rxd5 {[%clk 0:22:48]}  Rd8 {[%clk 0:12:35]}
31. Rxf5 {[%clk 0:23:00]}  Rxd4 {[%clk 0:13:01]} 32. h3 {[%clk 0:23:07]}  Kg7 {[%clk 0:12:46]} 33. Rb5 {[%clk 0:22:43]}  b6 {[%clk 0:11:34]}
34. b3 {[%clk 0:22:21]}  Bf6 {[%clk 0:11:37]} 35. a4 {[%clk 0:22:18]}  Rd2 {[%clk 0:11:47]} 36. f3 {[%clk 0:22:02]}  Bd4+ {[%clk 0:11:48]}
37. Kh2 {[%clk 0:22:19]}  Kg6 {[%clk 0:10:34]} 38. a5 {[%clk 0:22:15]}  a6 {[%clk 0:10:12]} 39. Rb4 {[%clk 0:21:55]}  bxa5 {[%clk 0:10:35]}
40. Rc4 {[%clk 0:22:14]}  Be5+ {[%clk 0:07:23]} 41. f4 {[%clk 0:22:35]}  Bb8 {[%clk 0:07:27]} 42. Kg3 {[%clk 0:22:19]}  Rd3+ {[%clk 0:07:24]}
43. Kg4 {[%clk 0:22:37]}  Rxb3 {[%clk 0:07:10]} 44. Rc6+ {[%clk 0:22:58]}  Kg7 {[%clk 0:07:32]} 45. Rxa6 {[%clk 0:23:20]}  Rb5 {[%clk 0:07:01]}
46. h4 {[%clk 0:23:31]}  h5+ {[%clk 0:06:06]} 0-1

[Event "Irish Championship 2026"]
[Site "Talbot Hotel Stillorgan, Co.Dublin, IE"]
[Date "2026.08.07"]
[Round "7"]
[White "OBrien, James Joseph"]
[Black "Rai, Oleksii"]
[Result "1/2-1/2"]
[Board "78"]
[TimeControl "40/5400+30:1800+30"]
[WhiteFideId "2518813"]
[BlackFideId "2531526"]
[WhiteElo "1914"]
[BlackElo "1840"]
[WhiteClock "0:00:48"]
[BlackClock "1:02:25"]
[Variant "Standard"]
[EndDate "2026.08.07"]
[EndTime "17:55:41"]

1. e4 {[%clk 1:30:45]}  c5 {[%clk 1:30:54]} 2. Nc3 {[%clk 1:31:02]}  d6 {[%clk 1:31:15]} 3. f4 {[%clk 1:31:27]}  Nc6 {[%clk 1:31:37]}
4. Nf3 {[%clk 1:31:52]}  g6 {[%clk 1:31:48]} 5. d4 {[%clk 1:32:10]}  cxd4 {[%clk 1:32:09]} 6. Nxd4 {[%clk 1:32:34]}  Bg7 {[%clk 1:32:30]}
7. Be3 {[%clk 1:32:58]}  Nf6 {[%clk 1:32:02]} 8. Be2 {[%clk 1:33:18]}  O-O {[%clk 1:31:00]} 9. Nb3 {[%clk 1:33:37]}  b6 {[%clk 1:24:52]}
10. O-O {[%clk 1:33:50]}  Bb7 {[%clk 1:24:44]} 11. Bf3 {[%clk 1:33:50]}  Nd7 {[%clk 1:21:15]} 12. Qd2 {[%clk 1:29:11]}  Nc5 {[%clk 1:17:35]}
13. Rad1 {[%clk 1:23:02]}  a5 {[%clk 1:11:19]} 14. Qf2 {[%clk 1:06:45]}  Bxc3 {[%clk 1:03:04]} 15. bxc3 {[%clk 0:59:33]}  Qc7 {[%clk 1:02:28]}
16. e5 {[%clk 0:46:28]}  dxe5 {[%clk 0:58:24]} 17. Bxc5 {[%clk 0:42:14]}  bxc5 {[%clk 0:58:33]} 18. Nxc5 {[%clk 0:41:38]}  Rad8 {[%clk 0:52:15]}
19. Nxb7 {[%clk 0:35:33]}  Qxb7 {[%clk 0:52:42]} 20. fxe5 {[%clk 0:32:02]}  Qb5 {[%clk 0:44:34]} 21. Bxc6 {[%clk 0:30:46]}  Qxc6 {[%clk 0:44:45]}
22. Rxd8 {[%clk 0:31:08]}  Rxd8 {[%clk 0:45:11]} 23. Qxf7+ {[%clk 0:31:29]}  Kh8 {[%clk 0:45:38]} 24. Qxe7 {[%clk 0:31:02]}  Qe8 {[%clk 0:44:55]}
25. Qxe8+ {[%clk 0:26:14]}  Rxe8 {[%clk 0:45:19]} 26. Re1 {[%clk 0:26:33]}  Re6 {[%clk 0:45:35]} 27. Kf2 {[%clk 0:24:38]}  Kg7 {[%clk 0:45:59]}
28. Re4 {[%clk 0:22:13]}  Kf7 {[%clk 0:46:13]} 29. Ke3 {[%clk 0:22:01]}  Rb6 {[%clk 0:46:22]} 30. e6+ {[%clk 0:20:46]}  Ke7 {[%clk 0:46:46]}
31. a4 {[%clk 0:20:39]}  Rb2 {[%clk 0:46:01]} 32. Kd3 {[%clk 0:20:38]}  Ra2 {[%clk 0:46:18]} 33. g4 {[%clk 0:16:24]}  g5 {[%clk 0:46:10]}
34. h3 {[%clk 0:16:32]}  h6 {[%clk 0:46:35]} 35. Kd2 {[%clk 0:16:42]}  Ra1 {[%clk 0:46:40]} 36. Kd3 {[%clk 0:13:23]}  Ra3 {[%clk 0:45:54]}
37. Rc4 {[%clk 0:06:14]}  Kxe6 {[%clk 0:43:53]} 38. Kd4 {[%clk 0:05:20]}  Kd6 {[%clk 0:43:58]} 39. Ke4 {[%clk 0:05:29]}  Ra1 {[%clk 0:40:21]}
40. Kf5 {[%clk 0:02:56]}  Rh1 {[%clk 0:40:17]} 41. Rd4+ {[%clk 0:02:55]}  Kc5 {[%clk 0:40:42]} 42. Rd3 {[%clk 0:03:16]}  Re1 {[%clk 0:40:21]}
43. Rd8 {[%clk 0:19:57]}  Re3 {[%clk 1:10:08]} 44. Rc8+ {[%clk 0:19:01]}  Kb6 {[%clk 1:08:33]} 45. Rb8+ {[%clk 0:19:11]}  Kc7 {[%clk 1:06:11]}
46. Rb5 {[%clk 0:17:25]}  Rxh3 {[%clk 1:06:32]} 47. Rxa5 {[%clk 0:17:13]}  h5 {[%clk 1:06:12]} 48. gxh5 {[%clk 0:12:51]}  Rxh5 {[%clk 1:06:38]}
49. Ke4 {[%clk 0:05:05]}  Rh4+ {[%clk 1:05:04]} 50. Kd3 {[%clk 0:05:31]}  Kb6 {[%clk 1:04:24]} 51. Rb5+ {[%clk 0:04:56]}  Kc6 {[%clk 1:04:40]}
52. Rb4 {[%clk 0:01:55]}  g4 {[%clk 1:02:43]} 53. Rc4+ {[%clk 0:00:56]}  Kb6 {[%clk 1:02:42]} 54. Ke3 {[%clk 0:00:54]}  Ka5 {[%clk 1:02:08]}
55. Ke2 {[%clk 0:00:32]}  Rh2+ {[%clk 1:02:15]} 56. Kf1 {[%clk 0:00:48]}  Rxc2 {[%clk 1:02:25]} 1/2-1/2